bitfinex/quotes_SOLUSD_20240606
["timestamp","ask_amount","ask_price","bid_price","bid_amount"]
[1717658167584,2.15,172.09,172.05,2.1504]
[1717658167885,8.0,172.09,172.05,2.1504]
[1717658168186,8.0001,172.08,172.04,2.1506]
[1717658168685,2.1501,172.08,172.04,2.1506]
[1717658168885,8.0001,172.08,172.04,2.1506]
[1717658169376,8.0001,172.08,172.03,120.0]
[1717658169377,2.15,172.09,172.05,2.1504]
[1717658169577,8.0,172.09,172.05,2.1504]
[1717658170172,8.0,172.09,172.04,2.1506]
[1717658170366,2.1501,172.08,172.04,2.1506]
[1717658170577,8.0001,172.08,172.04,2.1506]
[1717658171488,2.1501,172.08,172.04,2.1506]
[1717658172690,5.85,172.09,172.05,2.1505]
[1717658172691,8.0,172.09,172.05,2.1505]
[1717658173795,2.15,172.09,172.05,2.1505]
[1717658174169,7.9999,172.1,172.05,2.1505]
[1717658174795,7.9999,172.1,172.06,2.1504]
[1717658175381,2.15,172.09,172.05,2.1504]
[1717658175898,8.0,172.09,172.05,2.1504]
[1717658176581,8.0,172.09,172.05,122.1504]
[1717658176782,2.15,172.09,172.05,122.1504]
[1717658176971,7.9999,172.1,172.06,2.1503]
[1717658177672,2.1499,172.1,172.06,2.1503]
[1717658177895,7.9998,172.11,172.07,2.1502]
[1717658178070,2.1498,172.11,172.07,8.1606]
[1717658178276,4.2984,172.16,172.09,5.85]
[1717658178471,2.1496,172.13,172.09,7.9999]
[1717658178673,2.1496,172.12,172.08,8.1605]
[1717658178884,7.9997,172.11,172.07,2.1502]
[1717658179188,5.85,172.1,172.08,2.1501]
[1717658179491,5.85,172.1,172.07,2.1502]
[1717658180089,5.85,172.1,172.08,2.1501]
[1717658180479,5.85,172.1,172.07,2.1502]
[1717658180681,5.85,172.1,172.08,2.1501]
[1717658184389,5.85,172.11,172.09,2.15]
[1717658184798,2.1497,172.12,172.09,2.15]
[1717658185000,5.85,172.11,172.08,2.15]
[1717658186202,2.1497,172.12,172.09,2.15]
[1717658186394,5.85,172.11,172.09,2.15]
[1717658186981,2.1495,172.13,172.1,2.1499]
[1717658187177,2.1495,172.13,172.09,8.3796]
[1717658187492,2.1495,172.13,172.1,2.1499]
[1717658187888,7.9995,172.13,172.1,2.1499]
[1717658188295,7.9995,172.13,172.09,8.3796]
[1717658188696,7.9997,172.12,172.06,136.3583]
[1717658188986,7.9997,172.12,172.07,5.85]
[1717658189193,2.1497,172.12,172.06,142.2083]
[1717658189503,5.85,172.11,172.08,2.15]
[1717658190512,2.1497,172.12,172.09,2.15]
[1717658190697,5.85,172.11,172.09,2.15]
[1717658191008,5.85,172.11,172.08,2.1501]
[1717658191383,2.1497,172.12,172.08,2.1501]
[1717658191588,5.85,172.11,172.09,2.15]
[1717658191787,2.1497,172.12,172.09,2.15]
[1717658191788,7.9997,172.12,172.09,2.15]
[1717658192388,7.9997,172.12,172.08,122.15]
[1717658192617,2.1498,172.11,172.08,2.15]
[1717658193210,5.85,172.11,172.08,2.15]
[1717658195714,7.9997,172.11,172.08,2.15]
[1717658195899,2.1497,172.11,172.08,2.15]
[1717658196295,2.1497,172.12,172.08,2.15]
[1717658196497,5.85,172.11,172.08,2.15]
[1717658198089,2.1497,172.11,172.08,2.15]
[1717658198296,7.9997,172.11,172.08,2.15]
[1717658198502,5.85,172.11,172.08,2.15]
[1717658200234,5.85,172.11,172.09,2.15]
[1717658200590,5.85,172.11,172.08,2.15]
[1717658201001,10.747,172.14,172.08,120.0]
[1717658201201,5.85,172.12,172.08,122.15]
[1717658201512,7.9997,172.12,172.08,122.15]
[1717658202025,7.9997,172.12,172.09,2.15]
[1717658202706,7.9997,172.12,172.08,122.1501]
[1717658203127,2.1497,172.11,172.08,122.1501]
[1717658203325,2.1497,172.11,172.08,2.1501]
[1717658203498,5.85,172.1,172.04,11.8896]
[1717658203701,5.85,172.08,172.07,2.1502]
[1717658205418,5.85,172.08,172.05,2.1504]
[1717658205624,5.85,172.07,172.05,2.1504]
[1717658205809,2.1501,172.09,172.05,2.1504]
[1717658205810,5.85,172.06,172.05,2.1504]
[1717658207610,5.85,172.07,172.06,2.1503]
[1717658214241,5.85,172.09,172.07,2.1502]
[1717658214636,2.1498,172.11,172.07,2.1502]
[1717658214817,5.85,172.09,172.07,2.1502]
[1717658217315,10.691,172.15,172.06,120.0]
[1717658217540,17.1388,172.15,172.09,2.1499]
[1717658217841,5.85,172.12,172.09,2.1499]
[1717658219434,2.1496,172.13,172.09,2.1499]
[1717658219643,5.85,172.12,172.09,2.1499]
[1717658220241,7.9996,172.12,172.09,2.1499]
[1717658220437,7.9996,172.12,172.08,2.15]
[1717658221320,7.9996,172.12,172.06,120.0]
[1717658221519,7.9996,172.12,172.09,2.15]
[1717658222244,2.1496,172.12,172.09,2.15]
[1717658222428,5.85,172.11,172.09,2.15]
[1717658222938,5.85,172.11,172.08,2.15]
[1717658223332,4.2988,172.14,172.09,2.15]
[1717658223529,4.2988,172.14,172.06,120.0]
[1717658223530,5.85,172.11,172.08,2.15]
[1717658223942,2.1497,172.12,172.09,2.15]
[1717658224144,7.9997,172.12,172.09,2.15]
[1717658224346,2.1497,172.12,172.08,8.5493]
[1717658224642,7.9997,172.12,172.08,2.15]
[1717658225143,2.1497,172.12,172.08,2.15]
[1717658225336,7.9997,172.12,172.08,2.15]
[1717658225739,7.9997,172.12,172.08,122.15]
[1717658226120,2.1497,172.12,172.08,122.15]
[1717658226328,7.9997,172.12,172.08,122.15]
[1717658226743,2.1497,172.12,172.08,122.15]
[1717658226948,7.9997,172.12,172.08,122.15]
[1717658227448,7.9997,172.12,172.09,2.15]
[1717658227744,7.9997,172.12,172.08,122.15]
[1717658228458,7.9996,172.12,172.09,2.1499]
[1717658228627,5.85,172.12,172.09,2.1499]
[1717658228829,2.1496,172.13,172.09,8.6761]
[1717658229029,7.9996,172.13,172.09,8.6761]
[1717658229945,2.1496,172.12,172.09,8.6761]
[1717658230536,2.1494,172.14,172.1,2.1498]
[1717658230739,7.9994,172.14,172.1,2.1498]
[1717658231144,7.9994,172.14,172.09,6.5262]
[1717658231145,8.5946,172.21,172.13,120.0]
[1717658231353,8.5946,172.21,172.13,125.85]
[1717658231354,8.8172034,172.19,172.13,125.85]
[1717658232339,0.8184034,172.19,172.13,126.6184]
[1717658232542,5.85,172.18,172.14,0.17]
[1717658234842,5.85,172.16,172.13,120.0]
[1717658235039,5.85,172.15,172.13,120.0]
[1717658235352,5.85,172.15,172.12,0.34]
[1717658237160,5.85,172.15,172.11,120.0]
[1717658238163,5.85,172.15,172.11,126.5858]
[1717658238457,5.85,172.16,172.11,126.5858]
[1717658239245,0.8184034,172.19,172.13,120.0]
[1717658239557,5.85,172.17,172.13,120.0]
[1717658239756,5.85,172.17,172.14,0.51921586]
[1717658240336,0.8184034,172.19,172.13,120.0]
[1717658240561,0.8184034,172.19,172.14,0.17]
[1717658240562,5.85,172.17,172.14,0.17]
[1717658245368,0.8184034,172.19,172.14,0.34]
[1717658245663,5.85,172.15,172.09,120.0]
[1717658245961,5.85,172.12,172.09,120.0]
[1717658246942,5.85,172.12,172.07,120.0]
[1717658247150,2.1494,172.14,172.07,120.0]
[1717658247359,5.85,172.11,172.07,120.0]
[1717658247744,5.85,172.1,172.07,120.0]
[1717658247945,5.85,172.11,172.07,126.1899]
[1717658248158,5.85,172.11,172.08,0.17]
[1717658248667,2.1493,172.15,172.08,0.17]
[1717658248854,5.85,172.12,172.09,120.0]
[1717658249058,2.1494,172.14,172.08,0.34]
[1717658249059,5.85,172.11,172.08,0.34]
[1717658249264,5.85,172.11,172.08,0.17]
[1717658250382,11.7676034,172.19,172.08,0.17]
[1717658250555,2.1491,172.16,172.08,0.17]
[1717658250750,5.85,172.12,172.08,0.17]
[1717658251352,2.1492,172.15,172.08,0.17]
[1717658251551,2.1494,172.14,172.08,0.17]
[1717658251773,5.85,172.12,172.08,0.17]
[1717658252263,5.85,172.12,172.08,45.17]
[1717658254394,2.1494,172.14,172.08,45.17]
[1717658254600,5.85,172.12,172.08,45.17]
[1717658255603,2.1493,172.15,172.08,45.17]
[1717658255899,5.85,172.12,172.08,45.17]
[1717658257290,2.1493,172.15,172.08,45.17]
[1717658257498,5.85,172.12,172.08,45.17]
[1717658259404,5.85,172.12,172.09,120.0]
[1717658259994,2.1493,172.15,172.09,120.0]
[1717658260204,5.85,172.12,172.09,120.0]
[1717658260577,2.1493,172.15,172.09,120.0]
[1717658260795,5.85,172.12,172.09,120.0]
[1717658262101,5.85,172.12,172.08,45.17]
[1717658262296,34.1452,172.17,172.08,45.17]
[1717658262297,5.85,172.1,172.08,45.17]
[1717658262621,5.85,172.09,172.05,120.0]
[1717658262847,5.85,172.09,172.06,45.34]
[1717658263207,2.1495,172.13,172.06,45.34]
[1717658263519,5.85,172.09,172.06,45.34]
[1717658265729,5.85,172.11,172.07,120.0]
[1717658267718,2.1494,172.14,172.07,120.0]
[1717658267918,5.85,172.11,172.07,120.0]
[1717658268114,4.2983,172.16,172.06,45.34]
[1717658268115,5.85,172.1,172.06,45.34]
[1717658268319,5.85,172.1,172.06,45.0]
[1717658269628,5.85,172.09,172.06,45.0]
[1717658269936,5.85,172.09,172.04,6.1612]
[1717658270266,5.85,172.09,172.05,45.34]
[1717658270421,5.85,172.08,172.05,45.34]
[1717658270620,2.1497,172.12,172.05,45.34]
[1717658270821,5.85,172.08,172.05,45.34]
[1717658272841,5.85,172.08,172.05,0.34]
[1717658273019,5.85,172.08,172.04,45.0]
[1717658273914,10.7461,172.16,172.04,45.0]
[1717658274124,5.85,172.09,172.04,45.0]
[1717658275172,5.85,172.08,172.04,45.0]
[1717658275449,5.85,172.07,172.04,45.0]
[1717658276335,5.85,172.07,172.06,2.1504]
[1717658279258,6.2318,172.14,172.04,45.0]
[1717658279432,5.85,172.08,172.07,2.1502]
[1717658282764,5.85,172.12,172.07,120.34]
[1717658282938,5.85,172.12,172.11,2.1497]
[1717658283732,5.85,172.12,172.08,45.0]
[1717658283933,5.85,172.11,172.08,45.0]
[1717658284247,5.85,172.12,172.08,45.0]
[1717658285950,5.85,172.13,172.08,45.0]
[1717658286457,7.2943034,172.19,172.08,45.0]
[1717658286642,2.1492,172.16,172.08,45.0]
[1717658286961,5.85,172.13,172.08,45.0]
[1717658287169,5.85,172.12,172.08,45.0]
[1717658288440,5.85,172.13,172.08,45.0]
[1717658289663,5.85,172.12,172.08,45.0]
[1717658290060,5.85,172.12,172.08,51.2687]
[1717658290249,5.85,172.12,172.08,45.0]
[1717658290442,5.85,172.11,172.07,45.34]
[1717658290644,2.1494,172.14,172.08,45.0]
[1717658290955,5.85,172.11,172.08,45.0]
[1717658291767,2.1493,172.15,172.08,45.0]
[1717658292064,5.85,172.11,172.08,45.0]
[1717658292261,5.85,172.1,172.08,45.0]
[1717658292464,2.1495,172.13,172.05,120.0]
[1717658292664,5.85,172.09,172.04,6.2687]
[1717658293461,5.85,172.08,172.04,6.2687]
[1717658293778,5.85,172.08,172.05,0.17]
[1717658294069,5.85,172.08,172.05,0.34]
[1717658294245,5.85,172.09,172.05,0.34]
[1717658294446,5.85,172.09,172.05,45.34]
[1717658295066,5.85,172.08,172.03,120.0]
[1717658295374,5.85,172.06,172.03,120.0]
[1717658295542,2.1495,172.14,172.05,120.0]
[1717658295744,5.85,172.1,172.05,120.0]
[1717658296669,5.85,172.1,172.08,2.15]
[1717658297345,2.1491,172.16,172.12,2.1496]
[1717658297550,2.1491,172.17,172.12,2.1496]
[1717658297775,5.85,172.14,172.12,2.1496]
[1717658302477,2.1491,172.16,172.12,2.1496]
[1717658302650,5.85,172.14,172.12,2.1496]
[1717658303578,5.85,172.15,172.12,2.1496]
[1717658304080,2.1491,172.17,172.09,125.85]
[1717658304252,2.1491,172.17,172.1,57.3361]
[1717658304253,5.85,172.16,172.1,57.3361]
[1717658304750,2.1489,172.18,172.11,120.0]
[1717658305148,5.85,172.16,172.11,126.204]
[1717658306261,2.9672034,172.19,172.11,126.204]
[1717658306575,5.85,172.17,172.13,120.0]
[1717658307266,0.8184034,172.19,172.13,120.0]
[1717658307473,5.85,172.17,172.13,120.0]
[1717658309676,0.8184034,172.19,172.13,120.0]
[1717658310278,5.85,172.18,172.13,141.3622]
[1717658310462,5.85,172.18,172.14,6.6057]
[1717658311066,0.8184034,172.19,172.14,6.6057]
[1717658311267,0.8184034,172.19,172.15,171.6057]
[1717658311478,0.8184034,172.19,172.15,126.6057]
[1717658316964,0.8184034,172.19,172.16,45.0]
[1717658317370,0.8184034,172.19,172.14,0.34]
[1717658317679,6.6684034,172.19,172.15,0.17]
[1717658318585,0.8184034,172.19,172.15,120.17]
[1717658318779,0.8184034,172.19,172.16,45.0]
[1717658321001,0.8184034,172.19,172.17,142.3997]
[1717658321167,0.8184034,172.19,172.18,45.0]
[1717658324193,0.8184034,172.19,172.18,45.17]
[1717658324391,0.8184034,172.19,172.18,45.34]
[1717658327806,0.8184034,172.19,172.18,45.17]
[1717658328094,0.8184034,172.19,172.18,45.34]
[1717658333996,0.8184034,172.19,172.15,125.85]
[1717658334196,0.8184034,172.19,172.16,5.85]
[1717658337888,0.8184034,172.19,172.18,120.0]
[1717658338206,0.8184034,172.19,172.18,165.17]
[1717658338801,0.8184034,172.19,172.16,125.85]
[1717658339101,0.8184034,172.19,172.17,45.0]
[1717658344711,0.8184034,172.19,172.15,0.17]
[1717658344891,0.8184034,172.19,172.15,45.17]
[1717658345591,0.8184034,172.19,172.16,0.17]
[1717658345810,0.8184034,172.19,172.16,0.34]
[1717658350332,0.8184034,172.19,172.15,45.0]
[1717658350531,6.6684034,172.19,172.15,45.0]
[1717658353213,6.6684034,172.19,172.16,120.0]
[1717658353799,0.8184034,172.19,172.16,120.0]
[1717658360026,0.8184034,172.19,172.17,45.0]
[1717658365512,6.6684034,172.19,172.16,120.17]
[1717658365836,6.6684034,172.19,172.16,120.0]
[1717658366134,0.8184034,172.19,172.16,120.0]
[1717658375544,0.8184034,172.19,172.17,45.34]
[1717658378126,0.8184034,172.19,172.18,120.0]
[1717658378433,0.8184034,172.19,172.18,165.17]
[1717658378630,0.8184034,172.19,172.18,165.0]
[1717658378826,0.8184034,172.19,172.18,45.0]
[1717658379128,6.6684034,172.19,172.14,120.0]
[1717658380747,0.8184034,172.19,172.15,45.34]
[1717658381438,0.8184034,172.19,172.16,120.0]
[1717658382247,0.8184034,172.19,172.15,45.34]
[1717658382620,0.8184034,172.19,172.15,51.19]
[1717658384145,0.8184034,172.19,172.15,45.34]
[1717658384533,0.8184034,172.19,172.15,51.19]
[1717658386952,0.8184034,172.19,172.15,45.34]
[1717658387334,0.8184034,172.19,172.15,45.17]
[1717658387534,6.6684034,172.19,172.15,45.17]
[1717658388045,0.8184034,172.19,172.15,45.17]
[1717658388647,0.8184034,172.19,172.15,45.0]
[1717658392456,0.8184034,172.19,172.15,50.85]
[1717658395751,0.8184034,172.19,172.16,120.34]
[1717658395953,0.8184034,172.19,172.17,45.0]
[1717658399245,0.8184034,172.19,172.18,120.0]
[1717658399559,0.8184034,172.19,172.18,165.0]
[1717658402759,0.8184034,172.19,172.18,45.0]
[1717658402960,0.8184034,172.19,172.17,45.0]
[1717658410557,0.8184034,172.19,172.16,120.34]
[1717658412145,5.85,172.18,172.14,120.0]
[1717658412367,5.85,172.18,172.15,45.0]
[1717658412667,5.85,172.17,172.15,45.0]
[1717658412845,5.85,172.16,172.12,120.0]
[1717658413045,5.85,172.15,172.1,120.0]
[1717658413649,0.8184034,172.19,172.1,120.0]
[1717658413650,5.85,172.14,172.1,120.0]
[1717658414159,5.85,172.14,172.11,0.17]
[1717658414348,5.85,172.14,172.1,120.0]
[1717658414544,5.85,172.13,172.08,120.0]
[1717658415973,5.85,172.13,172.09,45.17]
[1717658416163,5.85,172.11,172.06,120.0]
[1717658417358,5.85,172.11,172.07,45.17]
[1717658417764,5.85,172.09,172.05,121.01065896]
[1717658418070,5.85,172.08,172.03,120.0]
[1717658418264,5.85,172.07,172.03,120.0]
[1717658419468,5.85,172.07,172.06,2.1504]
[1717658420773,5.85,172.08,172.07,2.1501]
[1717658421251,2.1494,172.14,172.08,2.15]
[1717658421453,6.0844,172.14,172.11,2.1497]
[1717658421694,5.85,172.12,172.11,2.1497]
[1717658422477,5.85,172.13,172.11,2.1497]
[1717658423280,5.85,172.13,172.1,2.1498]
[1717658424182,5.85,172.12,172.1,2.1498]
[1717658424677,5.85,172.11,172.05,120.0]
[1717658424863,5.85,172.09,172.05,120.0]
[1717658425561,5.85,172.09,172.08,2.15]
[1717658430779,5.85,172.09,172.07,2.1502]
[1717658430980,11.9029,172.08,172.0,120.0]
[1717658431188,5.85,172.05,172.0,120.0]
[1717658431370,2.1498,172.11,172.03,120.0]
[1717658431574,5.85,172.07,172.06,2.1504]
[1717658431974,2.1498,172.11,172.06,2.1504]
[1717658432282,8.2027,172.11,172.06,2.1504]
[1717658432591,5.85,172.08,172.06,2.1504]
[1717658432969,5.85,172.08,172.07,2.1502]
[1717658433398,5.85,172.08,172.06,2.1503]
[1717658434697,4.2991,172.13,172.06,2.1503]
[1717658434874,5.85,172.08,172.06,2.1503]
[1717658435271,5.85,172.08,172.05,122.1504]
[1717658437300,2.1498,172.11,172.06,2.1504]
[1717658437471,5.85,172.08,172.06,2.1504]
[1717658438498,2.1497,172.12,172.07,2.1502]
[1717658438708,5.85,172.1,172.08,2.1501]
[1717658439290,2.1495,172.13,172.08,2.1501]
[1717658439470,8.3777,172.15,172.07,120.0]
[1717658439680,5.85,172.12,172.1,2.1498]
[1717658440389,8.3777,172.15,172.1,2.1498]
[1717658440588,5.85,172.12,172.1,2.1498]
[1717658440985,8.3777,172.15,172.1,2.1498]
[1717658441185,5.85,172.12,172.1,2.1498]
[1717658441986,6.2284,172.15,172.11,2.1497]
[1717658442193,5.85,172.12,172.1,2.1498]
[1717658442399,2.1492,172.16,172.11,2.1496]
[1717658442586,2.149,172.17,172.1,45.0]
[1717658442912,5.85,172.14,172.13,2.1495]
[1717658443098,5.85,172.14,172.05,120.0]
[1717658443291,5.85,172.14,172.0,7.54188]
[1717658443292,6.6198,172.14,172.06,45.0]
[1717658443495,5.85,172.08,172.07,2.1502]
[1717658444580,5.85,172.09,172.07,2.1502]
[1717658444987,5.85,172.09,172.08,2.1501]
[1717658445190,5.85,172.09,172.07,2.1502]
[1717658445384,5.85,172.09,172.06,2.1503]
[1717658445704,5.85,172.08,172.06,2.1503]
[1717658446807,5.85,172.08,172.07,2.1502]
[1717658448806,5.85,172.08,172.06,2.1503]
[1717658448995,5.85,172.07,172.06,2.1503]
[1717658453786,5.85,172.07,172.05,165.0]
[1717658453787,5.85,172.07,172.05,47.1505]
[1717658453987,5.85,172.06,172.05,2.1505]
[1717658459225,2.15,172.1,172.05,2.1505]
[1717658459400,5.85,172.06,172.05,2.1505]
[1717658459806,5.85,172.06,172.04,2.1506]
[1717658460514,5.85,172.05,172.04,2.1506]
[1717658461189,5.85,172.05,172.01,120.0]
[1717658461190,5.85,172.05,172.02,2.1508]
[1717658461406,5.85,172.04,172.01,120.0]
[1717658461617,5.85,172.04,172.02,2.1508]
[1717658461816,5.85,172.04,172.03,2.1507]
[1717658463007,5.85,172.04,172.02,2.1508]
[1717658464512,2.1502,172.07,172.02,2.1508]
[1717658464513,5.85,172.03,172.02,2.1508]
[1717658465212,5.85,172.04,172.02,2.1508]
[1717658466114,2.1501,172.08,172.03,2.1507]
[1717658466419,5.85,172.05,172.03,2.1507]
[1717658469823,5.85,172.04,172.03,2.1507]
[1717658478032,5.85,172.05,172.03,2.1507]
[1717658479032,2.1503,172.07,172.03,2.1507]
[1717658479238,5.85,172.05,172.03,2.1507]
[1717658486252,5.85,172.05,172.04,2.1506]
[1717658486425,5.85,172.06,172.04,2.1506]
[1717658486942,5.85,172.06,172.03,2.1507]
[1717658487539,5.85,172.06,172.02,2.1508]
[1717658487747,5.85,172.04,172.02,2.1508]
[1717658488047,5.85,172.05,172.02,2.1508]
[1717658489038,5.85,172.05,172.03,2.1507]
[1717658489423,0.8184034,172.19,172.07,120.0]
[1717658489636,5.85,172.12,172.08,2.1501]
[1717658490140,5.85,172.11,172.08,2.1501]
[1717658490327,5.85,172.11,172.09,2.15]
[1717658493852,5.85,172.1,172.09,2.15]
[1717658496152,5.85,172.11,172.1,2.1499]
[1717658497649,5.85,172.15,172.14,2.1493]
[1717658498646,2.9672034,172.19,172.15,2.1492]
[1717658498851,5.85,172.16,172.15,2.1492]
[1717658500252,2.9672034,172.19,172.15,120.0]
[1717658500253,0.8184034,172.19,172.15,120.0]
[1717658500553,6.6684034,172.19,172.15,120.0]
[1717658500845,0.8184034,172.19,172.17,120.0]
[1717658501737,0.8184034,172.19,172.18,2.32260369]
[1717658502335,0.8184034,172.19,172.17,120.0]
[1717658506661,0.8184034,172.19,172.16,0.17]
[1717658506850,5.85,172.18,172.13,125.85]
[1717658507467,0.8184034,172.19,172.13,120.0]
[1717658507761,5.85,172.17,172.13,120.0]
[1717658508141,5.85,172.17,172.15,120.0]
[1717658509045,0.8184034,172.19,172.15,120.0]
[1717658509264,5.85,172.17,172.15,120.0]
[1717658510849,5.85,172.17,172.13,120.0]
[1717658512148,5.85,172.17,172.15,120.0]
[1717658513562,5.85,172.18,172.15,120.0]
[1717658516179,5.85,172.18,172.13,120.0]
[1717658516471,5.85,172.18,172.14,45.0]
[1717658516646,5.85,172.17,172.14,45.0]
[1717658516842,5.85,172.16,172.14,45.0]
[1717658517041,5.85,172.16,172.13,120.0]
[1717658518468,2.9672034,172.19,172.13,120.0]
[1717658518662,5.85,172.17,172.14,45.0]
[1717658518864,5.85,172.18,172.14,45.0]
[1717658519972,5.85,172.17,172.14,45.0]
[1717658520377,5.85,172.17,172.09,15.0231]
[1717658520378,5.85,172.15,172.1,120.0]
[1717658520579,5.85,172.12,172.08,120.0]
[1717658522364,5.85,172.12,172.1,2.1498]
[1717658524181,5.85,172.12,172.09,45.0]
[1717658524361,5.85,172.12,172.09,2.1499]
[1717658524561,5.85,172.11,172.09,2.1499]
[1717658528395,5.85,172.1,172.09,2.1499]
[1717658528569,5.85,172.1,172.03,15.7119]
[1717658528570,5.85,172.1,172.08,2.15]
[1717658530377,5.85,172.1,172.09,2.15]
[1717658531689,4.2985,172.15,172.11,2.1497]
[1717658531690,2.1493,172.15,172.11,2.1497]
[1717658531892,5.85,172.13,172.11,2.1497]
[1717658532278,2.1491,172.16,172.12,2.1496]
[1717658532469,5.85,172.15,172.12,2.1496]
[1717658533695,5.85,172.15,172.1,120.0]
[1717658534001,5.85,172.15,172.13,2.1494]
[1717658534167,2.9672034,172.19,172.13,120.0]
[1717658534364,5.85,172.16,172.14,2.1494]
[1717658540295,5.85,172.15,172.14,2.1494]
[1717658541206,5.85,172.15,172.13,2.1494]
[1717658541374,0.8184034,172.19,172.12,2.1496]
[1717658541375,5.85,172.14,172.12,2.1496]
[1717658541575,5.85,172.13,172.12,2.1496]
[1717658547474,5.85,172.13,172.11,2.1497]
[1717658547671,5.85,172.12,172.11,2.1497]
[1717658547889,5.85,172.13,172.12,2.1496]
[1717658550805,2.1492,172.16,172.12,2.1496]
[1717658551005,2.1491,172.16,172.12,2.1496]
[1717658551505,2.1491,172.16,172.11,2.1497]
[1717658552800,2.1492,172.15,172.11,2.1497]
[1717658554216,2.1492,172.16,172.12,2.1496]
[1717658555208,2.1492,172.16,172.11,2.1497]
[1717658555602,2.1492,172.15,172.11,2.1497]
[1717658558710,2.1492,172.16,172.11,2.1497]
[1717658560391,2.1493,172.15,172.11,2.1497]
[1717658560589,2.1492,172.16,172.11,2.1497]
[1717658561922,2.1493,172.15,172.11,2.1497]
[1717658562220,5.85,172.12,172.11,2.1497]
[1717658571119,5.85,172.12,172.09,8.69787856]
[1717658571420,5.85,172.1,172.09,8.69787856]
[1717658571608,5.85,172.1,172.09,10.84787856]
[1717658572112,5.85,172.1,172.09,8.69787856]
[1717658572622,5.85,172.1,172.07,10.84807856]
[1717658572796,5.85,172.08,172.07,10.84807856]
[1717658573215,5.85,172.08,172.07,2.1502]
[1717658575615,5.85,172.08,172.06,2.1503]
[1717658575795,4.2991,172.13,172.06,2.1503]
[1717658575796,5.85,172.07,172.06,8.70260333]
[1717658575996,5.85,172.07,172.06,10.85300333]
[1717658576511,5.85,172.07,172.06,2.1504]
[1717658577427,5.85,172.07,172.05,10.85400849]
[1717658577628,5.85,172.06,172.05,10.85400849]
[1717658579314,5.85,172.06,172.05,10.85354774]
[1717658580329,5.85,172.06,172.05,10.85364774]
[1717658581322,5.85,172.06,172.05,8.70314774]
[1717658581526,5.85,172.06,172.05,10.85364774]
[1717658581725,5.85,172.06,172.05,8.70314774]
[1717658581943,5.85,172.06,172.05,10.85364774]
[1717658582115,5.85,172.06,172.05,2.1505]
[1717658582316,5.85,172.06,172.05,10.85364774]
[1717658582642,5.85,172.06,172.05,2.1505]
[1717658583118,5.85,172.06,172.05,10.85364774]
[1717658583410,5.85,172.06,172.05,2.1505]